{"text_format":"3","workbook":"xlsx","n_sheets":2,"sheets":["Conversor","Material soporte"],"not_rendered":{"macros":1,"defined_names":2,"comments":1},"read":"whole","date_system":"1900"}

{"sheet":"Conversor","index":0,"n_rows":3,"n_cols":11,"rows_kept":3}
[]
[]
["Operación","Nombre Beneficiario","Cuenta Origen","Cuenta Destino","Importe","Referencia","Concepto","IVA","Email Beneficiario","Mensaje","Fecha Apl"]

{"sheet":"Material soporte","index":1,"n_rows":29,"n_cols":7,"rows_kept":29}
["BANCA POR INTERNET BANORTE - IXE"]
["FORMATO DE IMPORTACION DE OPERACIONES - LONGITUD FIJA"]
[]
[]
["Campo","Tipo","Longitud","Inicio","Fin","Requerido u Obligatorio","Observaciones/Ejemplos"]
["Operación","Numérico",2,1,{"$f":"(D6+C6)-D6","v":2},"SI","Valores Válidos 01=Transferencia a cuentas propias, 02=Transferencias a cuentas deTerceros (mismo banco), 04=SPEI, 05=TEF"]
["Nombre Beneficiario","Alfanumérico",50,{"$f":"E6+1","v":3},{"$f":"(D7+C7)-1","v":52},"SI","Si operación = 01 ó 02 longitud debe ser 10 (si la cuenta es a 8 posiciones, anteponer 2 ceros); si =03 ó 04 longitud debe ser 18 (CLABE) ó 16 (Tarjeta débito)"]
["Cuenta Origen","Numérico",18,53,70,"SI","Longitud debe ser 10 (si la cuenta es a 8 posiciones, anteponer 2 ceros)"]
["Cuenta Destino","Numérico",18,71,88,"SI","Si operación = 01 ó 02 longitud debe ser 10 (si la cuenta es a 8 posiciones, anteponer 2 ceros); si =03 ó 04 longitud debe ser 18 (CLABE) ó 16 (Tarjeta débito)"]
["Importe a Transferir","Numérico",13,89,101,"SI"]
["Número de Referencia","Numérico",10,102,111,"SI","Campo obligatorio\nSe puede capturar el número que quiera el cliente Ej: 01, 06, 10, 1234, etc…"]
["Concepto de Pago","Alfanumérico",35,{"$f":"E11+1","v":112},146,"SI","Campo obligatorio. Ej: Pago de Renta, Colegiatura"]
["IVA","Numérico",29,147,175,"NO","En caso de requerir comprobante fiscal por el pago a realizar se debe informar el IVA como dato informativo, es decir, no afecta al monto total de la operación. "]
["e-mail de Beneficiario","Alfanumérico",60,176,235,"NO","Se debe indicar en caso de requerir enviar un correo para informar al beneficiario sobre el pago realizado. "]
["Mensaje de Beneficiario","Alfanumérico",100,{"$f":"E13+1","v":176},{"$f":"(D15+C15)-1","v":275},"NO","Mensaje que se desee enviar al beneficiario dentro del correo de notificación de la operación."]
["Fecha de aplicación","Numérico",8,{"$f":"E15+1","v":276},{"$f":"(D16+C16)-1","v":283},"SI","Formato = DDMMAAAA; 13 SEP 2012 = 13092012\nPara ejecutar las operaciones en línea (mismo día),  informar la misma fecha en la que se transmite el archivo.\nPara programar operaciones, informar la fecha en la que se desea que se ejecute la operación (debe ser posterior a la fecha en la que se transmita el archivo)."]
{"$rows_empty":9}
["01 - Transferencias Propias"]
["02 - Transferencias Terceros "]
["04 - SPEI"]
["05 - TEF"]